bitfinex-derivatives/quotes_BTCF0:USTF0_20250719
["timestamp","ask_amount","ask_price","bid_price","bid_amount"]
[1752890712581,0.24615061,118080.0,118070.0,0.78771242]
[1752890712782,0.24615061,118080.0,118070.0,0.5445042]
[1752890713088,0.29413061,118080.0,118070.0,0.96538831]
[1752890713286,0.29413061,118080.0,118070.0,0.66610831]
[1752890713481,0.29513061,118080.0,118070.0,0.96538831]
[1752890713787,0.30017061,118080.0,118070.0,0.96538831]
[1752890714486,0.30017061,118080.0,118070.0,0.8437842]
[1752890714691,0.30017061,118080.0,118070.0,0.96538831]
[1752890715890,0.36661016,118080.0,118070.0,0.96538831]
[1752890716183,0.42720997,118080.0,118070.0,1.32618831]
[1752890716587,0.42720997,118080.0,118070.0,1.2043842]
[1752890716787,0.54881408,118080.0,118070.0,1.2043841]
[1752890717384,0.54881408,118080.0,118070.0,1.32598821]
[1752890718289,0.36661016,118080.0,118070.0,1.32598821]
[1752890719386,0.36661016,118080.0,118070.0,0.96518821]
[1752890720090,0.36661016,118080.0,118070.0,0.8435841]
[1752890720290,0.1692641,118070.0,118050.0,0.01001312]
[1752890720592,0.60663857,118070.0,118060.0,0.31416]
[1752890720791,0.53053441,118070.0,118060.0,0.01444]
[1752890720985,0.53053441,118070.0,118060.0,0.675]
[1752890721393,0.60663857,118070.0,118060.0,0.675]
[1752890722091,0.60663857,118070.0,118060.0,0.37524]
[1752890722292,0.60663857,118070.0,118060.0,0.67488]
[1752890722791,0.60663857,118070.0,118060.0,0.6748]
[1752890723294,0.53053441,118070.0,118060.0,0.6748]
[1752890724190,0.4089303,118070.0,118060.0,0.6748]
[1752890724388,0.53053441,118070.0,118060.0,0.6748]
[1752890724588,0.63700581,118070.0,118060.0,0.8440786]
[1752890724790,0.3884455,118070.0,118060.0,0.96568271]
[1752890724998,0.2289541,118070.0,118060.0,1.08728682]
[1752890725193,0.27947522,118070.0,118060.0,1.08728682]
[1752890725396,0.2033641,118070.0,118060.0,1.08728682]
[1752890725689,0.2281441,118070.0,118060.0,1.08728682]
[1752890726295,0.2281441,118070.0,118060.0,1.08828682]
[1752890726796,0.2033641,118070.0,118060.0,1.08828682]
[1752890727192,0.2281441,118070.0,118060.0,1.08828682]
[1752890727393,0.28903378,118070.0,118060.0,1.08828682]
[1752890728196,0.2281441,118070.0,118060.0,1.08828682]
[1752890728697,0.2033641,118070.0,118060.0,1.08828682]
[1752890729201,0.2281441,118070.0,118060.0,1.08828682]
[1752890729403,0.2033641,118070.0,118060.0,0.8450786]
[1752890729595,0.2033641,118070.0,118060.0,1.08828682]
[1752890729897,0.2281441,118070.0,118060.0,1.08828682]
[1752890730292,0.26425715,118070.0,118060.0,1.08828682]
[1752890730891,0.28903715,118070.0,118060.0,1.08828682]
[1752890731596,0.11977305,118070.0,118060.0,1.08828682]
[1752890731801,0.28903725,118070.0,118060.0,1.08828682]
[1752890733197,0.28903725,118070.0,118060.0,0.8450786]
[1752890733400,0.28903725,118070.0,118060.0,1.08828682]
[1752890736391,0.11977305,118070.0,118060.0,1.08828682]
[1752890736595,0.05118305,118070.0,118060.0,1.08828682]
[1752890736797,0.22044725,118070.0,118060.0,1.08828682]
[1752890737298,0.25230725,118070.0,118060.0,1.08828682]
[1752890737498,0.08304305,118070.0,118060.0,1.08828682]
[1752890738598,0.08304305,118070.0,118060.0,1.45989093]
[1752890738599,0.01074832,118070.0,118060.0,1.45989093]
[1752890738794,0.22947412,118100.0,118090.0,0.2075156]
[1752890738996,0.05044032,118100.0,118090.0,1.36979971]
[1752890739198,0.01695687,118100.0,118090.0,1.36979971]
[1752890739895,0.19017807,118100.0,118090.0,1.2481956]
[1752890740101,0.19017807,118100.0,118090.0,1.36979971]
[1752890740802,0.22203807,118100.0,118090.0,1.35590444]
[1752890741304,0.05481687,118100.0,118090.0,1.35590444]
[1752890741497,0.05081687,118100.0,118090.0,1.35590444]
[1752890741706,0.05081687,118100.0,118090.0,1.308052]
[1752890742102,0.04881687,118100.0,118090.0,1.309052]
[1752890742406,0.04881687,118100.0,118090.0,1.43065611]
[1752890743003,0.04881687,118100.0,118090.0,1.309052]
[1752890743202,0.04881687,118100.0,118090.0,1.311052]
[1752890744409,0.21803807,118100.0,118090.0,1.18944789]
[1752890744706,0.21803807,118100.0,118090.0,1.311052]
[1752890744907,0.24281807,118100.0,118090.0,1.311052]
[1752890745803,0.25262807,118100.0,118090.0,1.311052]
[1752890746208,0.25262807,118100.0,118090.0,1.011612]
[1752890746508,0.25262807,118100.0,118090.0,1.310652]
[1752890746706,0.25262807,118100.0,118090.0,1.310772]
[1752890747811,0.27456807,118100.0,118090.0,1.011612]
[1752890748018,0.29655807,118100.0,118090.0,1.316732]
[1752890752318,0.29655807,118100.0,118090.0,1.611932]
[1752890752918,0.29655807,118100.0,118090.0,0.890332]
[1752890753115,0.29655807,118100.0,118090.0,1.49032789]
[1752890753522,0.29655807,118100.0,118090.0,1.611932]
[1752890754021,0.29655807,118100.0,118090.0,1.613452]
[1752890755122,0.29655807,118100.0,118090.0,1.49184789]
[1752890755321,0.29655807,118100.0,118090.0,1.613452]
[1752890755514,0.29655807,118100.0,118090.0,1.49184789]
[1752890755714,0.29655807,118100.0,118090.0,1.613452]
[1752890757416,0.35728644,118100.0,118090.0,1.613452]
[1752890758018,0.35728644,118100.0,118090.0,1.314292]
[1752890758225,0.35728644,118100.0,118090.0,1.612812]
[1752890760822,0.47889055,118100.0,118090.0,1.02576]
[1752890761019,0.53976629,118100.0,118090.0,0.2982]
[1752890761222,0.61568309,118100.0,118090.0,0.5968]
[1752890761424,0.61568309,118100.0,118090.0,0.2982]
[1752890761927,1.14583509,118100.0,118090.0,0.302]
[1752890762114,1.14583509,118100.0,118090.0,0.003]
[1752890762318,0.2768799,118080.0,118070.0,0.656]
[1752890762518,0.60917343,118080.0,118070.0,0.6598]
[1752890762927,0.50269335,118080.0,118070.0,0.6598]
[1752890763225,0.50269335,118080.0,118070.0,0.4682642]
[1752890763726,0.50269335,118080.0,118070.0,0.8290642]
[1752890764030,0.50369335,118080.0,118070.0,0.8390642]
[1752890764621,0.42777655,118080.0,118070.0,0.8390642]
[1752890764930,0.53408519,118080.0,118070.0,0.8390642]
[1752890765527,0.42777655,118080.0,118070.0,0.8390642]
[1752890766327,0.42877655,118080.0,118070.0,0.8450642]
[1752890767017,0.42877655,118080.0,118070.0,0.8595142]
[1752890767328,0.48952119,118080.0,118070.0,0.8595142]
[1752890768624,0.48952119,118080.0,118070.0,0.69025]
[1752890768823,0.6111253,118080.0,118070.0,0.6758]
[1752890769527,0.6111253,118080.0,118070.0,0.3768]
[1752890769729,0.6111253,118080.0,118070.0,0.67552]
[1752890769919,0.6111253,118080.0,118070.0,0.67556]
[1752890770629,0.55038066,118080.0,118070.0,0.67556]
[1752890770828,0.42877655,118080.0,118070.0,0.67556]
[1752890771030,0.42877655,118080.0,118070.0,0.87852026]
[1752890772231,0.42877655,118080.0,118070.0,0.57976026]
[1752890772432,0.42877655,118080.0,118070.0,0.87860026]
[1752890773533,0.42877655,118080.0,118070.0,0.70933606]
[1752890773932,0.42877655,118080.0,118070.0,0.87860026]
[1752890776230,0.48952119,118080.0,118070.0,0.87860026]
[1752890778036,0.36791708,118080.0,118070.0,0.87860026]
[1752890778237,0.48952119,118080.0,118070.0,0.87860026]
[1752890780239,0.48952119,118080.0,118070.0,1.00020437]
[1752890780639,0.48952119,118080.0,118070.0,0.87860026]
[1752890783538,0.48952119,118080.0,118070.0,0.70933606]
[1752890783738,0.48952119,118080.0,118070.0,0.87860026]
[1752890784038,0.48952119,118080.0,118070.0,0.70933606]
[1752890784241,0.6111253,118080.0,118070.0,0.70845606]
[1752890784540,0.36791708,118080.0,118070.0,0.99932437]
[1752890784743,0.36791708,118080.0,118070.0,1.00707437]
[1752890786940,0.30717244,118080.0,118070.0,1.00707437]
[1752890787741,0.80717244,118080.0,118070.0,1.00707437]
[1752890788844,0.92877655,118080.0,118070.0,1.00707437]
[1752890789439,1.00473816,118080.0,118070.0,1.00707437]
[1752890791739,1.00473816,118080.0,118070.0,0.88547026]
[1752890791939,1.00473816,118080.0,118070.0,1.00707437]
[1752890792645,1.00473816,118080.0,118070.0,1.00584437]
[1752890793643,1.00473816,118080.0,118070.0,0.82998017]
[1752890793845,1.00473816,118080.0,118070.0,0.99924437]
[1752890794249,1.00473816,118080.0,118070.0,0.87764026]
[1752890794547,0.92877655,118080.0,118070.0,0.87764026]
[1752890795144,1.00495231,118080.0,118070.0,0.87764026]
[1752890795539,1.00495231,118080.0,118070.0,0.99924437]
[1752890796852,1.00495231,118080.0,118070.0,0.87764026]
[1752890797148,1.00495231,118080.0,118070.0,0.70837606]
[1752890798554,1.00495231,118080.0,118070.0,0.87764026]
[1752890798952,1.00495231,118080.0,118070.0,0.70837606]
[1752890800149,1.00495231,118080.0,118070.0,0.41049606]
[1752890800453,1.48735642,118080.0,118070.0,0.31356]
[1752890800751,1.41118066,118080.0,118070.0,0.31356]
[1752890801351,1.41118066,118080.0,118070.0,0.3136]
[1752890803452,1.41118066,118080.0,118070.0,0.4828642]
[1752890803453,0.92877655,118080.0,118070.0,0.4828642]
[1752890803651,1.00492514,118080.0,118070.0,0.4931742]
[1752890804950,0.92877655,118080.0,118070.0,0.8539742]
[1752890806156,0.98969094,118080.0,118070.0,0.68471]
[1752890806358,0.92877655,118080.0,118070.0,0.32391]
[1752890806657,0.98968876,118080.0,118070.0,0.4931742]
[1752890806956,0.92877655,118080.0,118070.0,0.4931742]
[1752890807656,0.98968703,118080.0,118070.0,0.4931742]
[1752890808757,0.98968703,118080.0,118070.0,0.8539742]
[1752890809057,0.98968703,118080.0,118070.0,0.4931742]
[1752890809559,0.98968703,118080.0,118070.0,0.32391]
[1752890811659,0.98968703,118080.0,118070.0,0.3136]
[1752890811860,0.92877655,118080.0,118070.0,0.3136]
[1752890812054,0.92877655,118080.0,118070.0,0.19922401]
[1752890812556,1.03536094,118080.0,118070.0,0.19922401]
[1752890812755,1.15696505,118080.0,118070.0,0.19922401]
[1752890812961,0.91375683,118080.0,118070.0,0.19922401]
[1752890813156,0.91375683,118080.0,118070.0,0.36848821]
[1752890813355,1.03536094,118080.0,118070.0,0.36848821]
[1752890814356,1.03536094,118080.0,118070.0,0.19922401]
[1752890816162,1.11149057,118080.0,118070.0,0.19922401]
[1752890816558,1.00490618,118080.0,118070.0,0.19922401]
[1752890818563,1.00490618,118080.0,118070.0,0.36848821]
[1752890819263,1.00490618,118080.0,118070.0,0.50154232]
[1752890819463,1.00490618,118080.0,118070.0,0.86234232]
[1752890820064,0.92877655,118080.0,118070.0,0.74073821]
[1752890820268,0.92877655,118080.0,118070.0,0.37993821]
[1752890820460,1.00490618,118080.0,118070.0,0.37993821]
[1752890821463,0.92877655,118080.0,118070.0,0.37993821]
[1752890821764,1.00490618,118080.0,118070.0,0.37993821]
[1752890823162,1.00490618,118080.0,118070.0,0.21067401]
[1752890823662,1.00490618,118080.0,118070.0,0.37993821]
[1752890823962,1.00490618,118080.0,118070.0,0.19922401]
[1752890824367,1.00490618,118080.0,118070.0,0.36848821]
[1752890824561,1.00490618,118080.0,118070.0,0.72928821]
[1752890825260,1.00490618,118080.0,118070.0,0.36848821]
[1752890825460,1.00490618,118080.0,118070.0,0.37993821]
[1752890826269,1.00490618,118080.0,118070.0,0.74073821]
[1752890826466,0.88330207,118080.0,118070.0,0.87170232]
[1752890827465,0.88330207,118080.0,118070.0,0.86454232]
[1752890828168,1.00490618,118080.0,118070.0,0.86454232]
[1752890828665,0.88330207,118080.0,118070.0,0.87170232]
[1752890829968,0.80717244,118080.0,118070.0,0.87170232]
[1752890830262,0.80717244,118080.0,118070.0,0.86454232]
[1752890831468,0.80717244,118080.0,118070.0,0.87170232]
[1752890832066,0.65663217,118080.0,118070.0,0.99467643]
[1752890832274,0.65663217,118080.0,118070.0,0.98077725]
[1752890832564,0.65649261,118080.0,118070.0,0.98077725]
[1752890832771,0.58036298,118080.0,118070.0,0.98077725]
[1752890833162,0.55500254,118080.0,118070.0,0.98077725]
[1752890833372,0.55500254,118080.0,118070.0,0.85917314]
[1752890833565,0.05500254,118080.0,118070.0,0.85917314]
[1752890834270,0.01945254,118080.0,118070.0,0.98077725]
[1752890835269,0.01945254,118080.0,118070.0,1.27597725]
[1752890835966,0.002,118080.0,118070.0,1.27597725]
[1752890836366,0.00063,118080.0,118070.0,1.37597725]
[1752890838476,0.06136,118090.0,118080.0,0.16925]
[1752890838665,0.03555,118090.0,118080.0,0.79186822]
[1752890840272,0.03555,118090.0,118080.0,0.79286822]
[1752890840273,0.03655,118090.0,118080.0,0.79286822]
[1752890840673,0.2057856,118090.0,118080.0,0.79286822]
[1752890841076,0.2315956,118090.0,118080.0,0.79286822]
[1752890841780,0.2414756,118090.0,118080.0,0.79286822]
[1752890843785,0.07224,118090.0,118080.0,0.79286822]
[1752890844082,0.06236,118090.0,118080.0,0.79286822]
[1752890844682,0.06236,118090.0,118080.0,1.08906822]
[1752890846485,0.06236,118090.0,118080.0,1.21067233]
[1752890846486,0.001,118090.0,118080.0,1.21067233]
[1752890846685,0.001,118090.0,118080.0,1.89627233]
[1752890846886,0.05991044,118100.0,118090.0,0.1859256]
[1752890847087,0.15317719,118110.0,118100.0,0.1692213]
[1752890847088,0.05228756,118110.0,118100.0,0.1692213]
[1752890847290,0.05228756,118110.0,118100.0,1.06958952]
[1752890847582,0.07704756,118110.0,118100.0,1.06958952]
[1752890848085,0.25669456,118110.0,118100.0,1.06958952]
[1752890848286,0.08748756,118110.0,118100.0,1.06958952]
[1752890849285,0.07904756,118110.0,118100.0,1.07058952]
[1752890849588,0.02302756,118110.0,118100.0,1.07058952]
[1752890849981,0.02202756,118110.0,118100.0,1.36578952]
[1752890850182,0.02102756,118110.0,118100.0,1.36578952]
[1752890850683,0.02102756,118110.0,118100.0,1.48739363]
[1752890850983,0.01902756,118110.0,118100.0,1.48639363]
[1752890851782,0.01802756,118110.0,118100.0,1.36578952]
[1752890852684,0.05328756,118110.0,118100.0,1.36578952]
[1752890853083,0.01802756,118110.0,118100.0,1.36578952]
[1752890855086,0.01802756,118110.0,118100.0,1.48739363]
[1752890855288,0.01802756,118110.0,118100.0,1.58739363]
[1752890858385,0.001,118110.0,118100.0,1.58739363]
[1752890861093,0.001,118110.0,118100.0,1.72789363]
[1752890861990,0.06002,118120.0,118110.0,0.169207]
[1752890862194,0.06002,118120.0,118110.0,0.79206076]
[1752890863194,0.06302,118120.0,118110.0,0.79306076]
[1752890863394,0.06402,118120.0,118110.0,0.79306076]
[1752890865398,0.03926,118120.0,118110.0,0.79306076]
[1752890865595,0.06402,118120.0,118110.0,0.79306076]
[1752890867800,0.06402,118120.0,118110.0,1.08826076]
[1752890871203,0.00363,118120.0,118110.0,1.32780487]
[1752890871405,0.02476,118130.0,118120.0,0.1910726]
[1752890871604,0.04204754,118140.0,118130.0,0.2053683]
[1752890871803,0.04204754,118140.0,118130.0,1.39210182]
[1752890872105,0.04204754,118140.0,118130.0,1.51370593]
[1752890872606,0.04304754,118140.0,118130.0,1.51370593]
[1752890872905,0.04504754,118140.0,118130.0,1.51470593]
[1752890873105,0.04504754,118140.0,118130.0,1.52392944]
[1752890873305,0.04304754,118140.0,118130.0,1.52292944]
[1752890873501,0.04404754,118140.0,118130.0,1.52292944]
[1752890873804,0.04304754,118140.0,118130.0,1.52392944]
[1752890876700,0.04304754,118140.0,118130.0,1.81912944]
[1752890878108,0.07855754,118140.0,118130.0,2.17992944]
[1752890880709,0.286844,118140.0,118130.0,1.94401533]
[1752890880906,0.40844811,118140.0,118130.0,2.11781122]
[1752890881106,0.40844811,118140.0,118130.0,2.09593122]
[1752890881505,0.286844,118140.0,118130.0,2.21753533]
[1752890881701,0.786844,118140.0,118130.0,1.80053122]
[1752890881901,1.03005222,118140.0,118130.0,0.37102351]
[1752890882106,1.03005222,118140.0,118130.0,0.66726351]
[1752890882304,1.44934822,118140.0,118130.0,0.37102351]
[1752890882507,0.2855583,118130.0,118120.0,0.3608]
[1752890882809,0.40716241,118130.0,118120.0,0.65704]
[1752890883406,0.40716241,118130.0,118120.0,0.8262327]
[1752890883602,0.90716241,118130.0,118120.0,0.4654327]
[1752890884108,0.90816241,118130.0,118120.0,0.4734327]
[1752890884309,0.90916241,118130.0,118120.0,0.4784327]
[1752890885006,0.91216241,118130.0,118120.0,0.4714327]
[1752890885409,0.7905583,118130.0,118120.0,0.4714327]
[1752890885809,0.7925583,118130.0,118120.0,0.4664327]
[1752890886208,0.7925583,118130.0,118120.0,0.8272327]
[1752890886513,0.87054472,118130.0,118120.0,0.94883681]
[1752890887914,0.99214883,118130.0,118120.0,0.65804]
[1752890888415,0.99214883,118130.0,118120.0,0.8272327]
[1752890889112,0.93148232,118130.0,118120.0,0.8272327]
[1752890889519,0.93148232,118130.0,118120.0,0.65804]
[1752890889913,0.93148232,118130.0,118120.0,0.29744]
[1752890890112,1.00761195,118130.0,118120.0,0.29744]
[1752890895119,0.93148232,118130.0,118120.0,0.29744]
[1752890895325,0.93148232,118130.0,118120.0,0.4666327]
[1752890896022,0.93148232,118130.0,118120.0,0.5309927]
[1752890896221,0.93148232,118130.0,118120.0,0.8271127]
[1752890896523,0.9922423,118130.0,118120.0,0.8271127]
[1752890897925,0.9922423,118130.0,118120.0,0.29712]
[1752890899226,0.9922423,118130.0,118120.0,0.4663127]
[1752890901732,0.87063819,118130.0,118120.0,0.4663127]
[1752890901930,0.9922423,118130.0,118120.0,0.4663127]
[1752890904027,0.9922423,118130.0,118120.0,0.29712]
[1752890905833,0.9922423,118130.0,118120.0,0.4663127]
[1752890906935,0.87063819,118130.0,118120.0,0.4663127]
[1752890907129,0.9922423,118130.0,118120.0,0.4663127]
[1752890907533,0.9922423,118130.0,118120.0,0.8271127]
[1752890907734,0.9922423,118130.0,118120.0,0.4663127]
[1752890908636,0.9922423,118130.0,118120.0,0.4659127]
[1752890908825,0.87063819,118130.0,118120.0,0.8267127]
[1752890909030,0.9922423,118130.0,118120.0,0.8267127]
[1752890909230,0.87063819,118130.0,118120.0,0.94831681]
[1752890909436,0.87063819,118130.0,118120.0,0.58751681]
[1752890909735,0.87063819,118130.0,118120.0,0.65259681]
[1752890909932,0.87063819,118130.0,118120.0,0.94827681]
[1752890910333,0.87063819,118130.0,118120.0,0.65259681]
[1752890910529,0.87063819,118130.0,118120.0,0.94831681]
[1752890910734,0.87071254,118130.0,118120.0,0.94831681]
[1752890911235,0.80987821,118130.0,118120.0,0.94831681]
[1752890911531,0.58517483,118130.0,118120.0,1.24002503]
[1752890911737,0.52431991,118130.0,118120.0,1.49002503]
[1752890912036,0.02431991,118130.0,118120.0,1.49002503]
[1752890912335,0.02431991,118130.0,118120.0,1.36842092]
[1752890913034,0.04987991,118130.0,118120.0,1.36838092]
[1752890913332,0.08248991,118130.0,118120.0,0.82270092]
[1752890913531,0.30757831,118130.0,118120.0,1.11834092]
[1752890915738,0.13839991,118130.0,118120.0,1.11834092]
[1752890915926,0.30757831,118130.0,118120.0,1.11834092]
[1752890916330,0.30262831,118130.0,118120.0,1.11822092]
[1752890916937,0.13344991,118130.0,118120.0,1.11822092]
[1752890917138,0.11038991,118130.0,118120.0,1.11822092]
[1752890917337,0.08248991,118130.0,118120.0,1.11822092]
[1752890918531,0.25166831,118130.0,118120.0,1.11822092]
[1752890919242,0.08248991,118130.0,118120.0,1.11822092]
[1752890919443,0.25166831,118130.0,118120.0,1.11822092]
[1752890920740,0.09300991,118130.0,118120.0,1.11822092]
[1752890920944,0.08248991,118130.0,118120.0,1.11822092]
[1752890921243,0.08248991,118130.0,118120.0,1.41342092]
[1752890921745,0.09300991,118130.0,118120.0,1.41342092]
[1752890922246,0.08248991,118130.0,118120.0,1.41342092]
[1752890925440,0.27956831,118130.0,118120.0,1.41342092]
[1752890925639,0.30262831,118130.0,118120.0,1.41342092]
[1752890925841,0.30757831,118130.0,118120.0,0.8614827]
[1752890926145,0.42918242,118130.0,118120.0,0.8311527]
[1752890926445,0.36843323,118130.0,118120.0,0.95275681]
[1752890926846,0.36843323,118130.0,118120.0,0.97253681]
[1752890927040,0.36843323,118130.0,118120.0,1.09414092]
[1752890927339,0.86843323,118130.0,118120.0,0.98177681]
[1752890927544,0.86843323,118130.0,118120.0,1.11574092]
[1752890928544,0.86837808,118130.0,118120.0,1.11574092]
[1752890928947,0.80757831,118130.0,118120.0,1.11574092]
[1752890929440,0.8683826,118130.0,118120.0,0.8601727]
[1752890929645,0.8683826,118130.0,118120.0,1.10338092]
[1752890930248,0.80757831,118130.0,118120.0,1.10338092]
[1752890930545,0.86838688,118130.0,118120.0,1.10338092]
[1752890931545,0.86838688,118130.0,118120.0,1.09414092]
[1752890931746,0.86838688,118130.0,118120.0,0.97253681]
[1752890932344,0.86838688,118130.0,118120.0,0.98177681]
[1752890932550,0.86838688,118130.0,118120.0,0.98197681]
[1752890933448,0.86838688,118130.0,118120.0,0.97273681]
[1752890933747,0.86838688,118130.0,118120.0,0.67737681]
[1752890933938,0.86838688,118130.0,118120.0,0.97277681]
[1752890934444,0.86838688,118130.0,118120.0,0.67737681]
[1752890934645,0.86838688,118130.0,118120.0,0.95291681]
[1752890935350,1.00513239,118130.0,118120.0,0.5309927]
[1752890935545,0.92918242,118130.0,118120.0,0.8263127]
[1752890936047,0.92918242,118130.0,118120.0,0.94791681]
[1752890936249,0.80757831,118130.0,118120.0,0.94791681]
[1752890936555,0.86842178,118130.0,118120.0,0.94791681]
[1752890936846,0.99002589,118130.0,118120.0,0.94791681]
[1752890937044,0.92918242,118130.0,118120.0,0.5309927]
[1752890937246,0.99002589,118130.0,118120.0,0.8263927]
[1752890939143,0.86842178,118130.0,118120.0,0.8263927]
[1752890939343,0.86842178,118130.0,118120.0,0.94799681]
[1752890939544,0.86842178,118130.0,118120.0,0.97202681]
[1752890939744,0.80757831,118130.0,118120.0,0.97202681]
[1752890939946,0.80757831,118130.0,118120.0,0.97182681]
[1752890940145,0.86842178,118130.0,118120.0,1.09343092]
[1752890940345,0.80757831,118130.0,118120.0,1.09343092]
[1752890940644,0.86842178,118130.0,118120.0,1.09343092]
[1752890942445,0.63839991,118130.0,118120.0,1.11441092]
[1752890942743,0.58516338,118130.0,118120.0,1.23601503]
[1752890942949,0.54929991,118130.0,118120.0,1.11441092]
[1752890943148,0.75297831,118130.0,118120.0,1.11441092]
[1752890943342,0.75297831,118130.0,118120.0,0.81921092]
[1752890943540,0.80551831,118130.0,118120.0,1.11461092]
[1752890943949,0.30551831,118130.0,118120.0,1.11461092]
[1752890944340,0.13633991,118130.0,118120.0,1.11461092]
[1752890944849,0.13633991,118130.0,118120.0,1.40981092]
[1752890944850,0.30551831,118130.0,118120.0,1.40981092]
[1752890945144,0.13633991,118130.0,118120.0,1.40981092]
[1752890945444,0.30551831,118130.0,118120.0,1.40981092]
[1752890946550,0.13633991,118130.0,118120.0,1.40981092]
[1752890947249,0.13633991,118130.0,118120.0,1.41041092]
[1752890948050,0.30551831,118130.0,118120.0,1.41041092]
[1752890948846,0.13633991,118130.0,118120.0,1.41041092]
[1752890949251,0.30551831,118130.0,118120.0,1.41041092]
[1752890950147,0.11902,118130.0,118120.0,1.41041092]
[1752890950348,0.2881984,118130.0,118120.0,1.11441092]
[1752890950550,0.2881984,118130.0,118120.0,1.41049092]
[1752890950749,0.2881984,118130.0,118120.0,1.41073092]
[1752890951855,0.11902,118130.0,118120.0,1.41073092]
[1752890952055,0.2881984,118130.0,118120.0,1.41073092]
[1752890957460,0.2881984,118130.0,118120.0,0.8712027]
[1752890957662,0.2881984,118130.0,118120.0,0.98092681]
[1752890957857,0.2881984,118130.0,118120.0,1.27700681]
[1752890958158,0.2881984,118130.0,118120.0,1.26790681]
[1752890958360,0.7881984,118130.0,118120.0,1.26790681]
[1752890958761,0.7881984,118130.0,118120.0,1.39861092]
[1752890959864,0.7881984,118130.0,118120.0,1.27700681]
[1752890960360,0.7881984,118130.0,118120.0,1.39861092]
[1752890960861,0.84904187,118130.0,118120.0,1.39861092]
[1752890961162,0.84904187,118130.0,118120.0,1.27700681]
[1752890961760,0.84904187,118130.0,118120.0,1.28868681]
[1752890961955,0.7881984,118130.0,118120.0,1.28868681]
[1752890962261,0.7881984,118130.0,118120.0,0.99280681]
[1752890962463,0.7881984,118130.0,118120.0,0.69760681]
[1752890962766,0.7881984,118130.0,118120.0,1.11505092]
[1752890963863,0.7881984,118130.0,118120.0,1.47585092]
[1752890965863,0.7881984,118130.0,118120.0,1.2326427]
[1752890966060,0.7881984,118130.0,118120.0,1.46397092]
[1752890966562,0.7881984,118130.0,118120.0,1.45487092]
[1752890967458,0.7881984,118130.0,118120.0,0.73327092]
[1752890967659,0.7881984,118130.0,118120.0,1.15903092]
[1752890967856,0.97064598,118130.0,118120.0,1.1927327]
[1752890968557,0.84904187,118130.0,118120.0,1.31433681]
[1752890970461,0.7881984,118130.0,118120.0,1.44492092]
[1752890970661,0.7881984,118130.0,118120.0,0.9226527]
[1752890970861,0.7881984,118130.0,118120.0,1.46214092]
[1752890971061,0.7881984,118130.0,118120.0,1.47283092]
[1752890972766,0.7881984,118130.0,118120.0,1.47271092]
[1752890973361,0.7881984,118130.0,118120.0,1.17655092]
[1752890973559,0.59282347,118130.0,118120.0,1.59431503]
[1752890973767,0.56784347,118130.0,118120.0,1.59431503]
[1752890974067,0.06784347,118130.0,118120.0,1.59431503]
[1752890974259,0.007,118130.0,118120.0,1.88951503]
[1752890974658,0.007,118130.0,118120.0,1.5247027]
[1752890974872,0.03234,118130.0,118120.0,1.76791092]
[1752890975168,0.06438,118130.0,118120.0,1.76791092]
[1752890976470,0.12522347,118130.0,118120.0,1.76791092]
[1752890979172,0.12522347,118130.0,118120.0,1.88951503]
[1752890979872,0.12522347,118130.0,118120.0,1.5247027]
[1752890980170,0.12522347,118130.0,118120.0,1.47271092]
[1752890980372,0.2866684,118130.0,118120.0,0.9333427]
[1752890980672,0.34751187,118130.0,118120.0,1.34085681]
[1752890980967,0.84751187,118130.0,118120.0,1.2105127]
[1752890981172,0.84751187,118130.0,118120.0,1.33211681]
[1752890983174,0.86261837,118130.0,118120.0,1.33259681]
[1752890983974,0.86261837,118130.0,118120.0,1.35156783]
[1752890984270,0.86261837,118130.0,118120.0,1.48191194]
[1752890984480,0.86261837,118130.0,118120.0,1.49260194]
[1752890984776,0.86261837,118130.0,118120.0,1.23854372]
[1752890984967,0.86261837,118130.0,118120.0,1.48175194]
[1752890986376,0.92350529,118130.0,118120.0,1.48175194]
[1752890986571,0.84755532,118130.0,118120.0,1.48175194]
[1752890986876,0.84755532,118130.0,118120.0,1.23854372]
[1752890987375,0.84755532,118130.0,118120.0,1.35140783]
[1752890987587,0.84755532,118130.0,118120.0,1.47301194]
[1752890988576,0.84755532,118130.0,118120.0,1.35140783]
[1752890988777,0.84755532,118130.0,118120.0,0.99060783]
[1752890989677,0.84755532,118130.0,118120.0,0.86900372]
[1752890989877,0.84755532,118130.0,118120.0,0.99056783]
[1752890990078,0.84755532,118130.0,118120.0,0.69368783]
[1752890990478,0.84755532,118130.0,118120.0,0.99048783]
[1752890991076,0.90827251,118130.0,118120.0,0.3618]
[1752890991274,0.90827251,118130.0,118120.0,0.29804]
[1752890991476,0.98422248,118130.0,118120.0,0.29804]
[1752890991676,0.90827251,118130.0,118120.0,0.4672327]
[1752890991872,0.90827251,118130.0,118120.0,0.1701927]
[1752890992077,0.90827251,118130.0,118120.0,0.4672327]
[1752890993274,0.90827251,118130.0,118120.0,0.29804]
[1752890995586,0.96911933,118130.0,118120.0,0.29804]
[1752890996187,0.90827251,118130.0,118120.0,0.29804]
[1752890997178,1.39067662,118130.0,118120.0,0.001]
[1752890997378,0.169207,118110.0,118100.0,0.94616]
[1752890997584,0.41468595,118110.0,118100.0,1.24284]
[1752890997986,0.41468595,118110.0,118100.0,1.4120614]
[1752890998287,0.29308184,118110.0,118100.0,1.53366551]
[1752890998987,0.79308184,118110.0,118100.0,1.53366551]
[1752890999287,0.79408184,118110.0,118100.0,1.53366551]
[1752891000390,0.79508184,118110.0,118100.0,1.66365962]
[1752891000591,0.79508184,118110.0,118100.0,1.57237782]
[1752891001589,0.79508184,118110.0,118100.0,1.56398782]
[1752891001889,0.79508184,118110.0,118100.0,1.68559193]
[1752891002089,0.79508184,118110.0,118100.0,1.69398193]
[1752891002993,0.79508184,118110.0,118100.0,1.45077371]
[1752891003194,0.79508184,118110.0,118100.0,1.57237782]
[1752891003893,0.79508184,118110.0,118100.0,1.56406782]
[1752891007091,0.79508184,118110.0,118100.0,1.57245782]
[1752891007692,0.79508184,118110.0,118100.0,1.70358193]
[1752891007889,0.76007184,118110.0,118100.0,1.70358193]
[1752891008194,0.74435184,118110.0,118100.0,1.70358193]
[1752891009792,0.74435184,118110.0,118100.0,1.99878193]
[1752891012003,0.74435184,118110.0,118100.0,1.41342193]
[1752891012200,0.57514484,118110.0,118100.0,1.41342193]
[1752891012604,0.52676,118110.0,118100.0,1.53502604]
[1752891012803,0.502,118110.0,118100.0,1.53502604]
[1752891013705,0.02676,118110.0,118100.0,1.53502604]
[1752891014206,0.0577,118110.0,118100.0,1.41342193]
[1752891014500,0.236637,118110.0,118100.0,1.11666193]
[1752891014806,0.277637,118110.0,118100.0,1.41354193]
[1752891016502,0.10843,118110.0,118100.0,1.41354193]
[1752891016698,0.10354,118110.0,118100.0,1.41354193]
[1752891016899,0.08315,118110.0,118100.0,1.41354193]
[1752891017208,0.252357,118110.0,118100.0,1.41354193]
[1752891017912,0.08315,118110.0,118100.0,1.41354193]